Workbook

Sheet Vte directe (hidden)
E1: Effectif | F1: Bio (Oui=1) | G1: Carcasse | H1: colis | I1: AMAP | J1: Magasin
A2: 1 | B2: Vaiser Didier | C2: 04150 SIMIANE-LA-ROTONDE | E2: 3 | F2: 1 | K2: BAILLY DIDIER | L2: 04170 THORAME HAUTE | M2: Arrêt
A3: 2 | B3: PICO SERGE | C3: 04510 AIGLUN | E3: 18 | F3: 1 | K3: FLEUTOT FRANCOISE | L3: 04230 MONTLAUX | M3: OL
A4: 3 | B4: PUIG JEAN | C4: 04410 ST JURS | E4: 18 | F4: 1 | K4: CHRISOSTOME MARIE-ELISABETH | L4: 04300 SAINT-MARTIN-LES-EAUX | N4: 165 | O4: 1 | P4: 1
A5: 4 | B5: MEYNET ELISABETH | C5: 04300 SIGONCE | E5: 29 | F5: 1 | K5: GAEC des OLIVETTES | L5: 04000 DIGNE LES BAINS | M5: Autres
A6: 5 | B6: KISTON Pierre | C6: 04310 GANAGOBIE | E6: 41 | F6: 1 | K6: MAGNIN Sébastien | L6: 04230 MONTLAUX | M6: OL
A7: 6 | B7: GALFARD | C7: Dargèle | D7: ALLONS | E7: 76 | F7: 0 | H7: 1 | K7: BISOGNO | L7: Murielle | M7: BEYNES | N7: 182 | O7: 0 | P7: 1
A8: 7 | B8: MADANI Anissa | C8: 04200 SISTERON | E8: 82 | F8: 1 | H8: 1 | K8: MOREUX PATRICK | L8: 04110 SAINT-CROIX-à-LAUZE | M8: Caprins
A9: 8 | B9: SAINT-ROCH DIDIER | C9: 04200 AUTHON | E9: 90 | F9: 1 | H9: 1 | K9: BERNE STEPHEN | L9: 04300 SAINT-MAIME
A10: 9 | B10: ARBEZ Cyril | C10: 04660 CHAMPTERCIER | E10: 90 | F10: 1 | K10: PREAU | L10: Michel | M10: ROUMOULES
A11: 10 | B11: BAYLE MICHELE | C11: 04700 LURS | E11: 95 | F11: 1 | K11: SCHAAL Florentin | L11: 04230 CRUIS | M11: OL
A12: 11 | B12: VOYER | C12: Noel | D12: MOUSTIERS STE MARIE | E12: 108 | F12: 0 | H12: 1 | K12: FERAUD Jean-Paul | L12: 04380 HAUTES DUVES | N12: 383 | O12: 1 | P12: 1
A13: 12 | B13: JOLLY JEAN MICHEL | C13: 04410 SAINT-JURS | E13: 120 | F13: 1 | K13: ROUX Martine | L13: 04300 LIMANS | M13: OL
A14: 13 | B14: PERAIN SILVIA | C14: 04150 REVEST-DES-BROUSSES | E14: 129 | F14: 1
A15: 14 | B15: GAEC LES GRANGES | C15: 04110 MONTFURON | E15: 129 | F15: 1 | H15: 1 | K15: GASSEND ROLAND | L15: 04380 BARRAS | M15: Autres
A16: 15 | B16: AGLIO YVES | C16: 04850 JAUSIERS | E16: 131 | F16: 1 | H16: 1
A17: 16 | B17: MADANI KARIM | C17: 04200 CHATEAU-NEUF-MIRAVAIL | E17: 142 | F17: 1 | H17: 1 | K17: L ETOILE DU BERGER | L17: 04140 LE-VERNET | M17: OL
A18: 17 | B18: FERRARI | C18: Benoit | D18: BEYNES | E18: 145 | F18: 0 | H18: 1
A19: 18 | B19: LOQUES CHRISTOPHE | C19: 04250 TURRIERS | E19: 160 | F19: 1
A20: 19 | B20: MERMET ISABELLE | C20: 04320 ENTREVAUX | E20: 160 | F20: 1 | K20: REYNAUD NICOLAS | L20: 04000 DIGNE LES BAINS | M20: Pas de vente?
A21: 20 | B21: SCEA LE COLLET | C21: 04500 MONTAGNAC MONTPEZAT | E21: 171 | F21: 1 | H21: 1 | K21: BERGERIE DE COSTEBELLE | L21: 04200 AUTHON
A22: 21 | B22: Stéphane GARAVAGNO | C22: 04170 THORAME-HAUTE | E22: 178 | F22: 1 | H22: 1 | K22: EARL DE ST ANNE | L22: 04500 QUINSON
A23: 22 | B23: BONDIL VINCENT | C23: 04360 MOUSTIERS-SAINT-MARIE | E23: 200 | F23: 1 | H23: 1 | I23: 1 | K23: Franck Sauvecanne | L23: 04110 MONTFURON
A24: 23 | B24: GIRAUD CATHERINE | C24: 04230 CRUIS | E24: 215 | F24: 1
A25: 24 | B25: SCEA DE VAUBELLE | C25: 04300 PIERRERUE | E25: 225 | F25: 1 | H25: 1
A26: 25 | B26: GAEC la ferme de bonnet | C26: 04200 AUTHON | E26: 237 | F26: 1 | H26: 1
A27: 26 | B27: MONIER JOEL | C27: 04230 ONGLES | E27: 242 | F27: 1
A28: 27 | B28: CAUVIN | C28: Christophe | D28: CASTELLANE | E28: 244 | F28: 0 | H28: 1
A29: 28 | B29: GAEC DU BOSQUET | C29: 04140 SELONNET | E29: 249 | F29: 1 | H29: 1
A30: 29 | B30: GAEC DU PRA SIMON | C30: GARINO Julien & Jacqueline | D30: LA CONDAMINE | E30: 252 | F30: 0 | H30: 1
A31: 30 | B31: PELESTOR PIERRE HENRI | C31: 04000 ENTRAGES | E31: 275 | F31: 1 | H31: 1
A32: 31 | B32: GAEC Le Déoule | C32: 04340 LA-BRéOLE | E32: 280 | F32: 1 | H32: 1 | I32: 1
A33: 32 | B33: BEVALOT | C33: Luc | D33: BLIEUX | E33: 290 | F33: 0 | H33: 1
A34: 33 | B34: RICHAUD | C34: Hubert | D34: SISTERON | E34: 300 | F34: 0 | J34: 1
A35: 34 | B35: Moran Emilie | C35: 04200 VALERNES | E35: 301 | F35: 1 | H35: 1
A36: 35 | B36: FAUDON JEAN-PHILIPPE | C36: 04380 HAUTES DUVES | E36: 310 | F36: 1
A37: 36 | B37: ASSOCIATION LONGO MAI | C37: 04300 LIMANS | E37: 320 | F37: 1
A38: 37 | B38: NICOLAS | C38: François | D38: FAUCON DU CAIRE | E38: 325 | F38: 0 | H38: 1
A39: 38 | B39: GAEC DES BREISSAND | C39: BREISSAND Cédric & André | D39: Le CASTELLARD MELAN | E39: 380 | F39: 0 | H39: 1
A40: 39 | B40: GAEC Clavelas | D40: ST MARTIN LES EAUX | E40: 410 | F40: 0 | H40: 1 | I40: 1
A41: 40 | B41: GAEC de Cordhelle | C41: 04500 ALLEMAGNE-EN-PROVENCE | E41: 436 | F41: 1 | H41: 1 | I41: 1
A42: 41 | B42: METERY | C42: Sylvie | D42: MONTAGNAC | E42: 454 | F42: 0 | H42: 1
A43: 42 | B43: GAEC LA ROCHETTE | C43: 04300 FORCALQUIER | E43: 484 | F43: 1 | H43: 1 | I43: 1
A44: 43 | B44: LADRET AGNES | C44: 04150 LIMANS | E44: 507 | F44: 1 | H44: 1
A45: 44 | B45: GAEC DU CLOS DE JALINES | C45: UGHETTO, MIGLIORE, DOFF… | D45: MARCOUX | E45: 550 | F45: 0 | J45: 1
A46: 45 | B46: GAEC MONTAURIS | C46: Guibert | D46: MONTJUSTIN | E46: 570 | F46: 0 | H46: 1
A47: 46 | B47: GUICHARD | C47: Evelyne | D47: LA PALUD SUR VERDON | E47: 570 | F47: 0 | H47: 1
A48: 47 | B48: METERY | C48: Annie | D48: MONTAGNAC | E48: 573 | F48: 0 | H48: 1
A49: 48 | B49: GAEC DE L'ESPERANCE | C49: Ayasse | D49: PIEGUT | E49: 662 | F49: 0 | H49: 1
A50: 49 | B50: GAEC DU PRE DES POIRIERS | C50: 04200 NOYERS-SUR-JABRON | E50: 950 | F50: 1 | G50: 1
A51: 50 | B51: GAEC DE PASCALONE | C51: GAYDE Michel | D51: RIEZ | E51: 1150 | F51: 0 | H51: 1
A52: 51 | B52: GAEC DU MOURRE NEGRE | C52: 04280 CERESTE | E52: 1650 | F52: 1 | H52: 1
E53: =SUM(E2:E52) -> 15726 | F53: 34 | G53: 1 | H53: 33 | I53: 5 | J53: 2

Sheet Viande (hidden)
F1: Prix couleurs paysannes | G1: Etal 3 vallées
F2: Bio GAEC Isoard
B3: Gigot | C3: =$C$7*20% ->  | D3: 16 | G3: 16 (raccourci)
B4: Epaule | C4: =$C$7*15% ->  | D4: 13.5 | F4: 15-18 (roulée)
B5: cotellettes | C5: =$C$7*35% ->  | D5: 18 | F5: 20 (cote 2nde) | G5: 18-19
B6: Selle-carré-collier | C6: =$C$7*30% ->  | D6: 10 | F6: de 12 à 13 | G6: 10
C7: =#REF! ->  | D7: =(C3*D3+C4*D4+C5*D5+C6*D6)/C7 -> 

Sheet Saisie agneaux (hidden)
C2: Saisissez ici vos chiffres | E2: Une moyenne locale pour vous aider
B3: Poids moyen carcasse | C3: 16 | E3: 16
B4: Prix moyen au kilo carcasse | C4: 5.5 | D4: 5.5 | E4: 5.5 | F4: Prix moyen indicatif 2016
B5: Nombre moyen d'agneaux par lot en vente directe | C5: 12 | E5: 5 à 15
B6: Distance à l'abattoir (aller-retour) | C6: 80 | E6: 80
B7: Prix abattage au kilo | C7: 0.92 | E7: 0.92 | F7: Prix abattoir de Digne 2016 (>2T)
B8: Prix découpe au kilo (découpe normale en frais) | C8: 1.5 | E8: 1.5 | F8: Prix atelier de découpe Digne 2016
B9: % de perte à la découpe (normale en frais) | C9: 0.18 | E9: 10 à 20% | F9: Attention très variable selon l'atelier, type d'agneau (engraissé/herbe) et type de découpe. A titre indicatif on peut prendre 16% pour une découpe normale et 18% en découpe barbecue,
B10: Kilométrage moyen d'une livraison | C10: 200 | E10: 100 à 250 Km | F10: Distance domicile - atelier de découpe - livraison et retour
B11: Prix de revient du kilomètre pour amener les agneaux | C11: 0.45 | E11: =véhicule!F38 -> 0.4491 | F11: Pour un calcul personnalisé allez à l'onglet "véhicule"
B12: Prix de revient du kilomètre pour livrer la viande | C12: 0.61 | E12: =véhicule!F40 -> 0.6057666667 | F12: Pour un calcul personnalisé allez à l'onglet "véhicule"
B13: Frais généraux annuels | F13: Télephone, dépliants, site internet, place de marché…
B14: Nombre de livraisons annuelles | C14: 10 | E14: 10
B15: Temps moyen passé pour un lot de vente directe | C15: 13 | E15: 13 | F15: 5h de transport + 2h de contact client + 2h abattoir + 4h commande et organisation tournée Si vente en magasin: 2,5h de transport + 4h de permanence au magasin + 1h abattoir.
B16: Prix de vente TTC au client | C16: 13 | E16: 13
A18: A remplir uniquement si vous envisagez la vente en magasin:
B19: % de frais de magasin | C19: 0.15 | E19: 0.15 | F19: En général entre 15 et 20%
B20: Prix de vente moyen TTC d'un agneau en magasin | C20: 16 | E20: 16 | F20: Pour un calcul personnalisé allez à l'onglet "Prix moyen de vente"
B21: Prix de découpe au kilo (en détail sous-vide) | C21: 1.7 | E21: 1.7 | F21: Prix atelier de découpe Digne "découpe sous-vide"
B22: % de perte à la découpe en sous-vide | C22: 0.18 | E22: 0.18 | F22: Attention très variable selon lieu de découpe, type d'agneau (engraissé/herbe) et type de découpe. A titre indicatif on peut prendre 16% pour une découpe normale et 18% en découpe barbecue,
A25: Résultat de la saisie (pour en savoir plus allez sur l'onglet correspondant): | C25: Vente en colis | E25: Vente détail en magasin
B26: Marge par agneau | C26: ='Ovin-colis'!J31 -> 19.50857978 | E26: ='Ovin-détail en magasin'!J34 -> 5.33685782
B27: Rémunération horaire de votre travail | C27: ='Ovin-colis'!J35 -> 18.0079198 | E27: ='Ovin-détail en magasin'!J38 -> 2.052637623

Sheet Ovin-colis
B1: CALCUL DE LA MARGE VENTE DIRECTE PAR AGNEAU ET DE LA REMUNERATION DE VOTRE TRAVAIL
V4: Prix de l'agneau | W4: =J6 -> 88 | X4: =W4/$W$9 -> 0.5159474672
F5: Poids moyen | H5: agriculteur/sinstaller-dans-les-alpes-de-haute-provence/ | J5: Prix agneau | V5: Transport | W5: =J9+J18 -> 13.16666667 | X5: 0.07719668543
B6: Agneau vendu carcasse via cheville | F6: ='Saisie agneaux'!C3 -> 16 | G6: x | H6: ='Saisie agneaux'!C4 -> 5.5 | I6: = | J6: =F6*H6 -> 88 | V6: Abattage-découpe | W6: =J12+J15 -> 38.72 | X6: 0.2270168856
J7: + | V7: TVA et divers | W7: =J21+J28*Utilitaire!B2+J22 -> 11.16475355 | X7: 0.06545938998
D8: Distance abattoir (AR) | F8: Prix du Km | H8: Nombre d'agneaux | J8: Frais transport vif | V8: Marge | W8: =J31 -> 19.50857978 | X8: 0.1143795719
B9: Frais de transport en vif | D9: ='Saisie agneaux'!C6 -> 80 | E9: x | F9: ='Saisie agneaux'!C11 -> 0.45 | G9: : | H9: ='Saisie agneaux'!C5 -> 12 | I9: = | J9: =IF(H9=0,0,F9*D9/H9) -> 3 | V9: Total | W9: =SUM(W4:W8) -> 170.56 | X9: 1
J10: +
F11: Poids moyen | H11: Prix au kilo | J11: Frais abattage
B12: Frais d'abattage | F12: =F6 -> 16 | G12: x | H12: ='Saisie agneaux'!C7 -> 0.92 | I12: = | J12: =F12*H12 -> 14.72
J13: +
F14: Poids moyen | H14: Prix au kilo | J14: Frais découpe
B15: Frais de découpe | F15: =F6 -> 16 | G15: x | H15: ='Saisie agneaux'!C8 -> 1.5 | I15: = | J15: =F15*H15 -> 24
J16: +
D17: Distance client (AR) | F17: Prix du Km | H17: Nombre d'agneaux | J17: Frais transport viande
B18: Frais de transport en caissette | D18: ='Saisie agneaux'!C10 -> 200 | E18: x | F18: ='Saisie agneaux'!C12 -> 0.61 | G18: : | H18: =H9 -> 12 | I18: = | J18: =IF(H18=0,0,F18*D18/H18) -> 10.16666667
J19: +
F20: Frais totaux | H20: Nombre d'agneaux | J20: Frais divers
B21: Frais généraux (dépliants, téléphone, place…) | F21: ='Saisie agneaux'!C13 -> 0 | G21: : | H21: ='Saisie agneaux'!C5*'Saisie agneaux'!C14 -> 120 | I21: = | J21: =IF(H21=0,0,F21/H21) -> 0
B22: Taxes Interbev & redevances spécifiques à la vente directe | I22: = | J22: =0.128*F6+0.225 -> 2.273
J23: = | M23: Kilomètre par agneau: | P23: =(D18+D9)/H9 -> 23.33333333
J24: Cout total agneau
B25: Cout total de l'agneau HT (sans votre travail) | I25: = | J25: =J6+J9+J12+J15+J18+J21+J22 -> 142.1596667
F27: Poids viande client | H27: Prix au kilo | J27: Prix de vente HT client
B28: Prix de vente HT client | F28: ='Saisie agneaux'!C3*(1-'Saisie agneaux'!C9) -> 13.12 | G28: x | H28: ='Saisie agneaux'!C16/(1+Utilitaire!B2) -> 12.32227488 | I28: = | J28: =F28*H28 -> 161.6682464
E29: ='Saisie agneaux'!C9 -> 0.18 | H29: ='Saisie agneaux'!C16 -> 13
J30: Marge par agneau
B31: Marge "vente directe" par agneau | I31: = | J31: =J28-J25 -> 19.50857978
F33: Temps de travail par lot | H33: Nombre d'agneaux | J33: Temps de travail par agneau
B34: Temps de travail par agneau (en minutes) | F34: ='Saisie agneaux'!C15 -> 13 | G34: : | H34: =H18 -> 12 | I34: = | J34: =IF(H34=0,0,60*F34/H34) -> 65
F35: Soit une rémunération horaire de votre travail à | J35: =IF(J34=0,0,60*J31/J34) -> 18.0079198 | K35: =100*J35/Utilitaire!B3 -> 186.2246101

Sheet Ovin-détail en magasin
B1: CALCUL DE LA MARGE VENTE DIRECTE PAR AGNEAU ET DE LA REMUNERATION DE VOTRE TRAVAIL
V4: Prix de l'agneau | W4: =J6 -> 88 | X4: =W4/$W$10 -> 0.4192073171
F5: Poids moyen | H5: Prix au kilo | J5: Prix agneau | V5: Transport | W5: =J9+J18 -> 31.6 | X5: 0.1505335366
B6: Agneau vendu carcasse via cheville | F6: ='Saisie agneaux'!C3 -> 16 | G6: x | H6: ='Saisie agneaux'!C4 -> 5.5 | I6: = | J6: =F6*H6 -> 88 | V6: Abattage-découpe | W6: =J12+J15 -> 41.92 | X6: 0.199695122
J7: + | V7: TVA et divers | W7: =J21+J31*5.5%+J22 -> 13.21669668 | X7: 0.06296063587
D8: Distance abattoir (AR) | F8: Prix du Km | H8: Nombre d'agneaux | J8: Frais transport vif | V8: Frais de magasin | W8: =J25 -> 29.8464455 | X8: 0.1421800948
B9: Frais de transport en vif | D9: ='Saisie agneaux'!C6 -> 80 | E9: x | F9: ='Saisie agneaux'!C11 -> 0.45 | G9: : | H9: 5 | I9: = | J9: =IF(H9=0,0,F9*D9/H9) -> 7.2 | V9: Marge | W9: =J34 -> 5.33685782 | X9: 0.02542329373
J10: + | V10: Total | W10: =SUM(W4:W9) -> 209.92 | X10: =SUM(X4:X9) -> 1
F11: Poids moyen | H11: Prix au kilo | J11: Frais abattage
B12: Frais d'abattage | F12: =F6 -> 16 | G12: x | H12: ='Saisie agneaux'!C7 -> 0.92 | I12: = | J12: =F12*H12 -> 14.72
J13: +
F14: Poids moyen | H14: Prix au kilo | J14: Frais découpe
B15: Frais de découpe | F15: =F6 -> 16 | G15: x | H15: ='Saisie agneaux'!$C$21 -> 1.7 | I15: = | J15: =F15*H15 -> 27.2
J16: +
D17: Distance client (AR) | F17: Prix du Km | H17: Nombre d'agneaux | J17: Frais transport viande
B18: Frais de transport en caissette | D18: ='Saisie agneaux'!C10 -> 200 | E18: x | F18: ='Saisie agneaux'!C12 -> 0.61 | G18: : | H18: =H9 -> 5 | I18: = | J18: =IF(H18=0,0,F18*D18/H18) -> 24.4
J19: +
F20: Frais totaux annuel | H20: Nombre d'agneaux | J20: Frais généraux
B21: Frais généraux (dépliants, téléphone, place…) | F21: ='Saisie agneaux'!C13 -> 0 | G21: : | H21: ='Saisie agneaux'!C5*'Saisie agneaux'!C14 -> 120 | I21: = | J21: =IF(H21=0,0,F21/H21) -> 0
B22: Taxes Interbev & redevances spécifiques à la vente directe | I22: = | J22: =0.128*F6+0.225 -> 2.273
J23: +
F24: Prix de vente HT client | H24: % de frais | J24: Frais de magasin
B25: Frais de magasin | F25: =J31 -> 198.9763033 | G25: x | H25: ='Saisie agneaux'!C19 -> 0.15 | I25: = | J25: =F25*H25 -> 29.8464455
J26: = | M26: Kilomètre par agneau: | P26: =(D18+D9)/H9 -> 56
J27: Cout total agneau
B28: Cout total de l'agneau HT (sans votre travail) | I28: = | J28: =J6+J9+J12+J15+J18+J21+J25+J22 -> 193.6394455
F30: Poids viande client | H30: Prix au kilo | J30: Prix de vente HT client
B31: Prix de vente HT client | F31: ='Saisie agneaux'!C3*(1-'Saisie agneaux'!C9) -> 13.12 | G31: x | H31: ='Saisie agneaux'!C20/(1+Utilitaire!B2) -> 15.16587678 | I31: = | J31: =F31*H31 -> 198.9763033
E32: ='Saisie agneaux'!$C$22 -> 0.18 | H32: ='Saisie agneaux'!$C$20 -> 16
J33: Marge par agneau
B34: Marge "vente directe" par agneau | I34: = | J34: =J31-J28 -> 5.33685782
F36: Temps de travail par lot | H36: Nombre d'agneaux | J36: Temps de travail par agneau
B37: Temps de travail par agneau (en minutes) | F37: ='Saisie agneaux'!C15 -> 13 | G37: : | H37: =H18 -> 5 | I37: = | J37: =IF(H37=0,0,60*F37/H37) -> 156
F38: Soit une rémunération horaire de votre travail à | J38: =IF(J37=0,0,60*J34/J37) -> 2.052637623 | K38: =100*J38/Utilitaire!B3 -> 21.2268627

Sheet Marge merguez
B1: CALCUL DE LA MARGE VENTE DIRECTE BREBIS TRANSFORMEE EN MERGUEZ
V5: Prix de la brebis | W5: =J7 -> 30 | X5: =W5/$W$10 -> 0.1823928574
F6: Poids moyen | H6: Prix au kilo | J6: Prix par brebis | V6: Transport | W6: =J10+J24 -> 0 | X6: 0
B7: Brebis vendue carcasse via cheville | F7: 25 | G7: x | H7: 1.2 | I7: = | J7: =F7*H7 -> 30 | V7: Abattage-découpe-transformation | W7: =J21-J20 -> 113.5208333 | X7: 0.6901796388
J8: + | V8: TVA et divers | W8: =J20+J27*5.5% -> 11.50702083 | X8: 0.06995994699
D9: Distance abattoir (AR) | F9: Prix du Km | H9: Nombre de brebis | J9: Frais transport vif | V9: Marge | W9: =J33 -> 9.452270932 | X9: 0.0574675568
B10: Frais de transport en vif | D10: ='Saisie agneaux'!C6 -> 80 | E10: x | F10: 0 | G10: : | H10: 3 | I10: = | J10: =IF(H10=0,0,F10*D10/H10) -> 0 | V10: Total | W10: =SUM(W5:W9) -> 164.4801251 | X10: 1
J11: +
F12: Poids moyen | H12: Prix au kilo | J12: Frais abattage & transformation
B13: Frais d'abattage | F13: =F7 -> 25 | G13: x | H13: 0.92 | I13: = | J13: =F13*H13 -> 23
B14: Frais de désossage | F14: =F7 -> 25 | G14: x | H14: 1.15 | I14: = | J14: =F14*H14 -> 28.75
D15: Perte au desossage: | E15: 0.45
B16: Frais de fabrication | F16: =$F$7*(1-$E$15) -> 13.75 | G16: x | H16: 3.5 | I16: = | J16: =F16*H16 -> 48.125
B17: Frais de conditionnement | F17: =F16 -> 13.75 | G17: x | H17: 0.75 | I17: = | J17: =F17*H17 -> 10.3125
B18: Autres frais (ingrédients fournis…) | G18: x | I18: = | J18: =F18*H18 -> 0
B19: Frais fixe ( 1 analyse par lot) | H19: 10 | I19: = | J19: =H19/H10 -> 3.333333333
B20: Cotisation Interbev et redevances spécifiques vente directe | J20: =0.128*F13+0.225 -> 3.425
H21: Soit au total | J21: =SUM(J13:J20) -> 116.9458333
J22: =J21/F16 -> 8.505151515
D23: Distance client (AR) | F23: Prix du Km | H23: Nombre de brebis | J23: Frais transport viande
B24: Frais de transport en caissette | D24: ='Saisie agneaux'!C10 -> 200 | E24: x | F24: 0 | G24: : | H24: =H10 -> 3 | I24: = | J24: =IF(H24=0,0,F24*D24/H24) -> 0
J25: =
J26: Cout total brebis
B27: Cout total de la brebis HT (sans votre travail) | I27: = | J27: =J7+J10+J21+J24 -> 146.9458333
F29: Poids viande client | H29: Prix au kilo | J29: Prix de vente HT client
B30: Prix de vente HT client | F30: =F16 -> 13.75 | G30: x | H30: =H31/1.055 -> 11.37440758 | I30: = | J30: =F30*H30 -> 156.3981043 | V30: Non comptées taxes"élevage" qui sont déduites également si vente négoce | AA30: =0.019*F7 -> 0.475 | AB30: par bête
H31: 12 | V31: Taxes spécifiques abattage découpe en cas de vente directe | AA31: =0.225+0.147*F7 -> 3.9 | AB31: par bête
J32: Marge par brebis | X32: Ecart | AA32: =AA31-AA30 -> 3.425
B33: Marge "vente directe" par brebis | I33: = | J33: =J30-J27 -> 9.452270932

Sheet véhicule (hidden)
C1: CALCUL DU PRIX DE REVIENT KILOMETRIQUE DES TRANSPORTS EN VENTE DIRECTE
A3: Prix de revient au km du véhicule de traction:
B5: Prix HT véhicule (déduire reprise ou revente) | E5: 15000
B7: Durée de vie prévisionnelle du véhicule (an) | E7: 12 | G7: Frais kilométrique d'amortissement du véhicule: | H7: =E5/(E7*E9) -> 0.08333333333
B9: Nombre total de km par an | E9: 15000
B11: Consommation moyenne / 100 km | E11: 8
G12: Frais kilométrique de carburant du véhicule: | H12: =E11*E13/100 -> 0.092 | J12: Total | K12: =H7+H12+H17 -> 0.2891
B13: Prix moyen du carburant HT | E13: 1.15
B15: Frais annuels d'entretien et pneus | E15: 1000
B17: Frais annuels d'assurances | E17: 500 | G17: Autres frais kilométrique du véhicule: | H17: =(E15+E17+E19)/E9 -> 0.1137666667
B19: Frais divers annuels ( 5%) | E19: =0.05*(((E5/E7))+(E11*E9*E13/100)+E15+E17) -> 206.5
A21: Prix de revient au km de la bétaillère:
B23: Prix HT bétaillère (déduire reprise ou revente) | E23: 3000
B25: Durée de vie prévisionnelle du véhicule (an) | E25: 15 | G25: Frais kilométrique de la bétaillère (incluant 20% de frais divers): | J25: Total | K25: =1.2*E23/(E25*E27) -> 0.16
B27: Nombre total de km par an | D27: (Km pour la vente directe et les autres usages) | E27: 1500
A29: Prix de revient au km du caisson réfrigéré ou isotherme:
B31: Prix HT du caisson (déduire reprise ou revente) | E31: 9500
B33: Durée de vie prévisionnelle du véhicule (an) | E33: 12 | G33: Frais kilométrique du caisson (incluant 20% de frais divers): | J33: Total | K33: =1.2*E31/(E33*E35) -> 0.3166666667
B35: Nombre total de km par an | E35: 3000
A38: Prix de revient au km du transport en vif: | F38: =K12+K25 -> 0.4491
A40: Prix de revient au km du transport de la viande: | F40: =K12+K33 -> 0.6057666667

Sheet Prix moyen de vente (hidden)
C1: Calcul de valorisation d'une carcasse à partir du prix de vente au détail de différents morceaux
E3: Répartition des morceaux | F3: Poids des morceaux | G3: Prix unitaire TTC | H3: % invendus | I3: Poids vendu | J3: Prix total TTC
A4: Morceaux nobles (côtes, gigot tranché) | E4: 0.45 | F4: =F7*E4 -> 5.904 | G4: 19.5 | H4: 0 | I4: =F4*(1-H4) -> 5.904 | J4: =I4*G4 -> 115.128
A5: Epaules roulées | E5: 0.15 | F5: =F7*E5 -> 1.968 | G5: 17.5 | H5: 0 | I5: =F5*(1-H5) -> 1.968 | J5: =I5*G5 -> 34.44
A6: Autres morceaux (selle, collier, souris…) | E6: 0.4 | F6: =F7*E6 -> 5.248 | G6: 11.5 | H6: 0 | I6: =F6*(1-H6) -> 5.248 | J6: =I6*G6 -> 60.352
D7: Total: | E7: =E4+E5+E6 -> 1 | F7: ='Ovin-détail en magasin'!F31 -> 13.12 | I7: =I4+I6+I5 -> 13.12 | J7: =J4+J6+J5 -> 209.92
G9: Soit un prix moyen de vente TTC de: | J9: =J7/F7 -> 16

Sheet Utilitaire (hidden)
A2: Taux de TVA | B2: 0.055
A3: SMIC horaire brut 2015 | B3: 9.67
